fUSD/lending_fUSD_20250217
["ID","MTS","AMOUNT","RATE_DAILY","PERIOD"]
[353429378,1739824260359,-566.1,0.00014599,2]
[353429379,1739824260370,-985.31,0.00014599,2]
[353429380,1739824260384,-150.0,0.00014599,2]
[353429381,1739824260394,-628.67,0.00014599,2]
[353429382,1739824260405,-500.0,0.00014599,2]
[353429383,1739824260416,-890.88,0.00014599,2]
[353429384,1739824260426,-10000.0,0.000146,4]
[353429385,1739824260436,-500.0,0.000146,2]
[353429386,1739824260446,-425.73,0.000146,2]
[353429387,1739824260456,-500.0,0.000146,2]
[353429388,1739824260466,-500.0,0.000146,2]
[353429389,1739824260475,-500.0,0.000146,2]
[353429390,1739824260485,-500.0,0.000146,2]
[353429391,1739824260494,-500.0,0.000146,2]
[353429392,1739824260503,-199.775587,0.000146,2]
[353429393,1739824260513,-500.0,0.000146,2]
[353429394,1739824260522,-500.0,0.000146,2]
[353429395,1739824260533,-500.0,0.000146,2]
[353429396,1739824260542,-500.0,0.000146,2]
[353429397,1739824260551,-151.0,0.000146,2]
[353429398,1739824260561,-500.0,0.000146,2]
[353429399,1739824260570,-500.0,0.000146,2]
[353429400,1739824260579,-500.0,0.000146,2]
[353429401,1739824260588,-151.0,0.000146,2]
[353429402,1739824260598,-151.0,0.000146,2]
[353429403,1739824260608,-500.0,0.000146,2]
[353429404,1739824260616,-500.0,0.000146,2]
[353429405,1739824260628,-567.94,0.000146,2]
[353429406,1739824260637,-768.43,0.000146,2]
[353429407,1739824260647,-500.0,0.000146,2]
[353429408,1739824260656,-647.34,0.000146,2]
[353429409,1739824260665,-983.87,0.000146,2]
[353429410,1739824260674,-685.53,0.000146,2]
[353429411,1739824260683,-500.0,0.000146,2]
[353429412,1739824260693,-230.81261,0.000146,2]
[353429413,1739824260702,-743.63,0.000146,2]
[353429414,1739824260711,-670.47,0.000146,2]
[353429415,1739824260721,-230.81261,0.000146,2]
[353429416,1739824260731,-500.0,0.000146,2]
[353429417,1739824260740,-636.61,0.000146,2]
[353429418,1739824260750,-547.2,0.000146,2]
[353429419,1739824260759,-654.54,0.000146,2]
[353429420,1739824260768,-971.37,0.000146,2]
[353429421,1739824260777,-1065.05,0.000146,2]
[353429422,1739824260786,-500.0,0.000146,2]
[353429423,1739824260795,-500.0,0.000146,2]
[353429424,1739824260805,-1119.09,0.000146,2]
[353429425,1739824260815,-1251.34,0.000146,2]
[353429426,1739824260826,-500.0,0.000146,2]
[353429427,1739824260836,-755.73,0.000146,2]
[353429428,1739824260846,-980.53,0.000146,2]
[353429429,1739824260856,-500.0,0.000146,2]
[353429430,1739824260865,-500.0,0.000146,2]
[353429431,1739824260876,-842.52,0.000146,2]
[353429432,1739824260885,-500.0,0.000146,2]
[353429433,1739824260896,-500.0,0.000146,2]
[353429434,1739824260905,-500.0,0.000146,2]
[353429435,1739824260914,-500.0,0.000146,2]
[353429436,1739824260923,-500.0,0.000146,2]
[353429437,1739824260933,-500.0,0.000146,2]
[353429438,1739824260941,-500.0,0.000146,2]
[353429439,1739824260950,-500.0,0.000146,2]
[353429440,1739824260959,-151.0,0.00014601,2]
[353429441,1739824260968,-500.0,0.00014601,2]
[353429442,1739824260976,-860.15,0.00014601,2]
[353429443,1739824260985,-2183.23,0.00014601,2]
[353429444,1739824260994,-500.0,0.00014601,2]
[353429445,1739824261003,-500.0,0.00014601,2]
[353429446,1739824261012,-500.0,0.00014601,2]
[353429447,1739824261022,-500.0,0.00014601,2]
[353429448,1739824261030,-566.08,0.00014601,2]
[353429449,1739824261040,-661.86,0.00014601,2]
[353429450,1739824261049,-500.0,0.00014601,2]
[353429451,1739824261059,-500.0,0.00014601,2]
[353429452,1739824261067,-631.5,0.00014601,2]
[353429453,1739824261076,-500.0,0.00014601,2]
[353429454,1739824261085,-151.0,0.00014602,2]
[353429455,1739824261095,-500.0,0.00014602,2]
[353429456,1739824261104,-385.831293,0.00014602,2]
[353429457,1739824261113,-385.831293,0.00014602,2]
[353429458,1739824261123,-500.0,0.00014602,2]
[353429459,1739824261132,-151.0,0.00014602,2]
[353429460,1739824261141,-151.0,0.00014602,2]
[353429461,1739824261151,-151.0,0.00014602,2]
[353429462,1739824261162,-249.24844,0.00014602,2]
[353429463,1739824261171,-507.866296,0.00014602,2]
[353429464,1739824261180,-590.81,0.00014602,2]
[353429465,1739824261190,-577.67,0.00014602,2]
[353429466,1739824261200,-1001.9,0.00014602,2]
[353429467,1739824261209,-587.36,0.00014602,2]
[353429468,1739824261218,-1071.78,0.00014602,2]
[353429469,1739824261228,-977.2,0.00014602,2]
[353429470,1739824261237,-909.38,0.00014602,2]
[353429471,1739824261246,-773.35,0.00014602,2]
[353429472,1739824261255,-500.0,0.00014602,2]
[353429473,1739824261264,-599.87,0.00014602,2]
[353429474,1739824261273,-1025.81,0.00014602,2]
[353429475,1739824261283,-1111.81,0.00014602,2]
[353429476,1739824261292,-683.66,0.00014602,2]
[353429477,1739824261302,-500.0,0.00014602,2]
[353429478,1739824261311,-1058.99,0.00014602,2]
[353429479,1739824261320,-500.0,0.00014602,2]
[353429480,1739824261329,-500.0,0.00014602,2]
[353429481,1739824261338,-765.72,0.00014602,2]
[353429482,1739824261348,-1329.95,0.00014602,2]
[353429483,1739824261359,-500.0,0.00014602,2]
[353429484,1739824261369,-1346.76460986,0.00014603,2]
[353429485,1739824261380,-150.0,0.00014603,2]
[353429486,1739824261389,-150.0,0.00014604,2]
[353429487,1739824261399,-1997.0,0.00014606,2]
[353429488,1739824261408,-150.0,0.00014607,2]
[353429489,1739824261418,-150.0,0.00014607,2]
[353429490,1739824261427,-150.0,0.00014611,2]
[353429491,1739824261438,-151.0,0.00014612,2]
[353429492,1739824261448,-150.0,0.00014612,2]
[353429493,1739824261458,-1000.0,0.00014613,2]
[353429494,1739824261467,-150.0,0.00014616,2]
[353429495,1739824261476,-150.0,0.0001462,2]
[353429496,1739824261485,-150.0,0.00014623,2]
[353429497,1739824261495,-150.0,0.00014626,2]
[353429498,1739824261504,-150.0,0.00014643,2]
[353429499,1739824261515,-504.57,0.00014656,2]
[353429500,1739824261526,-320.47580011,0.00014658,2]
[353429501,1739824261535,-153.32,0.00014658,2]
[353429502,1739824261544,-500.0,0.00014668,2]
[353429503,1739824261554,-750.0,0.0001467,2]
[353429504,1739824261563,-400.0,0.0001467,2]
[353429505,1739824261572,-151.0,0.0001467,2]
[353429506,1739824261582,-679.90570741,0.00014671,2]
[353429507,1739824261591,-1070.83,0.00014681,2]
[353429508,1739824261600,-695.82,0.00014681,2]
[353429509,1739824261610,-685.81,0.00014681,2]
[353429510,1739824261620,-500.0,0.00014681,2]
[353429511,1739824261631,-937.42,0.00014681,2]
[353429512,1739824261641,-500.0,0.00014681,2]
[353429513,1739824261650,-795.398462,0.00014681,2]
[353429514,1739824261660,-816.26,0.00014681,2]
[353429515,1739824261669,-588.37,0.00014681,2]
[353429516,1739824261679,-591.42,0.00014681,2]
[353429517,1739824261688,-732.62,0.00014681,2]
[353429518,1739824261697,-567.58,0.00014681,2]
[353429519,1739824261707,-670.65,0.00014681,2]
[353429520,1739824261715,-876.32,0.00014681,2]
[353429521,1739824261725,-548.070799,0.00014681,2]
[353429522,1739824261735,-975.56,0.00014681,2]
[353429523,1739824261744,-500.0,0.00014681,2]
[353429524,1739824261754,-513.1,0.00014681,2]
[353429525,1739824261763,-2432.3,0.00014681,2]
[353429526,1739824261773,-617.48,0.00014681,2]
[353429527,1739824261783,-1151.84,0.00014681,2]
[353429528,1739824261793,-651.63,0.00014681,2]
[353429529,1739824261802,-1462.81,0.00014681,2]
[353429530,1739824261812,-934.89,0.00014681,2]
[353429531,1739824261822,-566.1,0.00014681,2]
[353429532,1739824261831,-985.31,0.00014681,2]
[353429533,1739824261840,-628.67,0.00014681,2]
[353429534,1739824261850,-500.0,0.00014681,2]
[353429535,1739824261859,-890.88,0.00014681,2]
[353429536,1739824261868,-500.0,0.00014682,2]
[353429537,1739824261882,-500.0,0.00014682,2]
[353429538,1739824261891,-500.0,0.00014682,2]
[353429539,1739824261900,-500.0,0.00014682,2]
[353429540,1739824261910,-500.0,0.00014682,2]
[353429541,1739824261919,-424.18386712,0.00014682,2]
[353429542,1739824261929,-500.0,0.00014682,2]
[353429543,1739824261939,-500.0,0.00014682,2]
[353429544,1739824261948,-500.0,0.00014682,2]
[353429545,1739824261957,-500.0,0.00014682,2]
[353429546,1739824261967,-500.0,0.00014682,2]
[353429547,1739824261976,-226.02,0.00014682,2]
[353429548,1739824261986,-500.0,0.00014682,2]
[353429549,1739824261995,-500.0,0.00014682,2]
[353429550,1739824262005,-500.0,0.00014682,2]
[353429551,1739824262014,-567.94,0.00014682,2]
[353429552,1739824262024,-768.43,0.00014682,2]
[353429553,1739824262033,-500.0,0.00014682,2]
[353429554,1739824262043,-647.34,0.00014682,2]
[353429555,1739824262053,-983.87,0.00014682,2]
[353429556,1739824262062,-685.53,0.00014682,2]
[353429557,1739824262072,-500.0,0.00014682,2]
[353429558,1739824262082,-743.63,0.00014682,2]
[353429559,1739824262091,-670.47,0.00014682,2]
[353429560,1739824262101,-286.01,0.00014682,2]
[353429561,1739824262110,-654.54,0.00014682,2]
[353429562,1739824262119,-971.37,0.00014682,2]
[353429563,1739824262129,-1065.05,0.00014682,2]
[353429564,1739824262139,-483.43080261,0.00014682,2]
[353429565,1739824262148,-500.0,0.00014682,2]
[353429566,1739824262158,-1119.09,0.00014682,2]
[353429567,1739824262167,-1251.34,0.00014682,2]
[353429568,1739824262176,-500.0,0.00014682,2]
[353429569,1739824262186,-755.73,0.00014682,2]
[353429570,1739824262195,-980.53,0.00014682,2]
[353429571,1739824262205,-500.0,0.00014682,2]
[353429572,1739824262214,-500.0,0.00014682,2]
[353429573,1739824262223,-842.52,0.00014682,2]
[353429574,1739824262233,-500.0,0.00014682,2]
[353429575,1739824262243,-500.0,0.00014682,2]
[353429576,1739824262253,-500.0,0.00014682,2]
[353429577,1739824262262,-500.0,0.00014682,2]
[353429578,1739824262272,-500.0,0.00014682,2]
[353429579,1739824262282,-500.0,0.00014682,2]
[353429580,1739824262292,-500.0,0.00014682,2]
[353429581,1739824262301,-500.0,0.00014682,2]
[353429582,1739824262311,-860.15,0.00014683,2]
[353429583,1739824262321,-2183.23,0.00014683,2]
[353429584,1739824262331,-500.0,0.00014683,2]
[353429585,1739824262341,-500.0,0.00014683,2]
[353429586,1739824262350,-500.0,0.00014683,2]
[353429587,1739824262360,-500.0,0.00014683,2]
[353429588,1739824262373,-566.08,0.00014683,2]
[353429589,1739824262382,-661.86,0.00014683,2]
[353429590,1739824262392,-151.0,0.00014683,2]
[353429591,1739824262401,-189.682133,0.00014683,2]
[353429592,1739824262413,-151.0,0.00014683,2]
[353429593,1739824262423,-189.682133,0.00014683,2]
[353429594,1739824262434,-500.0,0.00014683,2]
[353429595,1739824262445,-151.0,0.00014683,2]
[353429596,1739824262455,-500.0,0.00014683,2]
[353429597,1739824262464,-151.0,0.00014683,2]
[353429598,1739824262474,-295.371286,0.00014683,2]
[353429599,1739824262483,-223.701866,0.00014683,2]
[353429600,1739824262492,-556.062407,0.00014683,2]
[353429601,1739824262501,-223.701866,0.00014683,2]
[353429602,1739824262510,-631.5,0.00014683,2]
[353429603,1739824262519,-556.062407,0.00014683,2]
[353429604,1739824262529,-500.0,0.00014684,2]
[353429605,1739824262539,-500.0,0.00014684,2]
[353429606,1739824262548,-590.81,0.00014684,2]
[353429607,1739824262558,-577.67,0.00014684,2]
[353429608,1739824262567,-1001.9,0.00014684,2]
[353429609,1739824262576,-587.36,0.00014684,2]
[353429610,1739824262585,-1071.78,0.00014684,2]
[353429611,1739824262595,-977.2,0.00014684,2]
[353429612,1739824262604,-909.38,0.00014684,2]
[353429613,1739824262614,-773.35,0.00014684,2]
[353429614,1739824262624,-500.0,0.00014684,2]
[353429615,1739824262633,-599.87,0.00014684,2]
[353429616,1739824262643,-1025.81,0.00014684,2]
[353429617,1739824262652,-1111.81,0.00014684,2]
[353429618,1739824262662,-683.66,0.00014684,2]
[353429619,1739824262671,-500.0,0.00014684,2]
[353429620,1739824262680,-1058.99,0.00014684,2]
[353429621,1739824262690,-500.0,0.00014684,2]
[353429622,1739824262699,-500.0,0.00014684,2]
[353429623,1739824262708,-765.72,0.00014684,2]
[353429624,1739824262717,-1329.95,0.00014684,2]
[353429625,1739824262727,-500.0,0.00014684,2]
[353429626,1739824262736,-68373.11649101,0.00014685,6]
[353429627,1739824262745,-538.25303826,0.00014686,6]
[353429628,1739824262754,-220.43961578,0.00014687,6]
[353429629,1739824262764,-150.0,0.00014691,2]
[353429630,1739824262773,-200.0,0.00014693,2]
[353429631,1739824262783,-41711.53870944,0.00014694,6]
[353429632,1739824262792,-41711.53870944,0.00014694,6]
[353429633,1739824262802,-150.0,0.00014698,2]
[353429634,1739824262811,-150.0,0.00014699,2]
[353429635,1739824262821,-500.0,0.00014699,2]
[353429636,1739824262831,-9575.32607317,0.00014699,2]
[353429637,1739824262840,-150.0,0.000147,2]
[353429638,1739824262850,-151.0,0.000147,2]
[353429639,1739824262860,-823.92,0.000147,31]
[353429640,1739824262869,-823.92,0.000147,31]
[353429641,1739824262881,-823.92,0.000147,31]
[353429642,1739824262890,-823.92,0.000147,31]
[353429643,1739824263034,-823.92,0.000147,31]
[353429644,1739824263072,-823.92,0.000147,31]
[353429645,1739824263083,-823.92,0.000147,31]
[353429646,1739824263092,-823.92,0.000147,31]
[353429647,1739824263102,-823.92,0.000147,31]
[353429648,1739824263111,-823.92,0.000147,31]
[353429649,1739824263121,-823.92,0.000147,31]
[353429650,1739824263133,-823.92,0.000147,31]
[353429651,1739824263143,-823.92,0.000147,31]
[353429652,1739824263153,-823.92,0.000147,31]
[353429653,1739824263163,-823.92,0.000147,31]
[353429654,1739824263174,-823.92,0.000147,31]
[353429655,1739824263184,-10000.0,0.000147,5]
[353429656,1739824263194,-68373.11649101,0.00014701,6]
[353429657,1739824263204,-68373.11649101,0.00014705,6]
[353429658,1739824263213,-538.25303826,0.00014707,6]
[353429659,1739824263223,-150.0,0.00014712,2]
[353429660,1739824263233,-500.0,0.00014713,2]
[353429661,1739824263243,-150.0,0.00014716,2]
[353429662,1739824263252,-150.0,0.0001472,2]
[353429663,1739824263263,-19576.58667083,0.0001472,6]
[353429664,1739824263272,-150.0,0.00014723,2]
[353429665,1739824263282,-200.0,0.00014723,6]
[353429666,1739824263291,-19576.58667083,0.00014727,6]
[353429667,1739824263301,-150.0,0.00014729,2]
[353429668,1739824263311,-1290.92768893,0.0001473,6]
[353429669,1739824263320,-150.0,0.0001473,2]
[353429670,1739824263330,-150.0,0.0001473,2]
[353429671,1739824263339,-150.0,0.00014731,2]
[353429672,1739824263349,-2298.0,0.00014737,12]
[353429673,1739824263359,-1290.92768893,0.00014738,6]
[353429674,1739824263371,-200.0,0.00014739,6]
[353429675,1739824263382,-19576.58667083,0.0001474,6]
[353429676,1739824263391,-6801.15196269,0.0001474,6]
[353429677,1739824263401,-538.25303826,0.0001474,6]
[353429678,1739824263412,-150.0,0.00014741,2]
[353429679,1739824263422,-563.04,0.00014743,2]
[353429680,1739824263432,-41711.53870944,0.00014743,6]
[353429681,1739824263444,-150.0,0.00014744,2]
[353429682,1739824263454,-4582.62633338,0.00014746,6]
[353429683,1739824263464,-1346.76460986,0.00014746,2]
[353429684,1739824263473,-230.81261,0.00014749,2]
[353429685,1739824263483,-230.81261,0.00014749,2]
[353429686,1739824263493,-200.0,0.00014752,6]
[353429687,1739824263503,-6801.15196269,0.00014754,6]
[353429688,1739824263512,-150.0,0.00014754,2]
[353429689,1739824263522,-4582.62633338,0.00014755,6]
[353429690,1739824263532,-1997.0,0.00014755,2]
[353429691,1739824263541,-150.0,0.00014756,2]
[353429692,1739824263551,-4582.62633338,0.00014761,6]
[353429693,1739824263560,-150.0,0.00014761,2]
[353429694,1739824263570,-150.0,0.00014763,2]
[353429695,1739824263580,-500.0,0.00014764,2]
[353429696,1739824263589,-500.0,0.00014764,2]
[353429697,1739824263599,-500.0,0.00014764,2]
[353429698,1739824263608,-500.0,0.00014764,2]
[353429699,1739824263619,-500.0,0.00014764,2]
[353429700,1739824263629,-500.0,0.00014764,2]
[353429701,1739824263638,-500.0,0.00014764,2]
[353429702,1739824263648,-500.0,0.00014764,2]
[353429703,1739824263657,-500.0,0.00014764,2]
[353429704,1739824263667,-281.24266,0.00014764,2]
[353429705,1739824263676,-500.0,0.00014764,2]
[353429706,1739824263686,-500.0,0.00014764,2]
[353429707,1739824263695,-151.0,0.00014764,2]
[353429708,1739824263704,-500.0,0.00014764,2]
[353429709,1739824263714,-500.0,0.00014764,2]
[353429710,1739824263723,-567.94,0.00014764,2]
[353429711,1739824263733,-1070.83,0.00014764,2]
[353429712,1739824263742,-768.43,0.00014764,2]
[353429713,1739824263752,-695.82,0.00014764,2]
[353429714,1739824263762,-500.0,0.00014764,2]
[353429715,1739824263771,-685.81,0.00014764,2]
[353429716,1739824263781,-647.34,0.00014764,2]
[353429717,1739824263791,-500.0,0.00014764,2]
[353429718,1739824263800,-983.87,0.00014764,2]
[353429719,1739824263810,-937.42,0.00014764,2]
[353429720,1739824263819,-500.0,0.00014764,2]
[353429721,1739824263828,-685.53,0.00014764,2]
[353429722,1739824263837,-795.398462,0.00014764,2]
[353429723,1739824263846,-816.26,0.00014764,2]
[353429724,1739824263857,-500.0,0.00014764,2]
[353429725,1739824263866,-743.63,0.00014764,2]
[353429726,1739824263878,-670.47,0.00014764,2]
[353429727,1739824263888,-591.42,0.00014764,2]
[353429728,1739824263897,-654.54,0.00014764,2]
[353429729,1739824263907,-732.62,0.00014764,2]
[353429730,1739824263916,-971.37,0.00014764,2]
[353429731,1739824263926,-567.58,0.00014764,2]
[353429732,1739824263935,-1065.05,0.00014764,2]
[353429733,1739824263946,-670.65,0.00014764,2]
[353429734,1739824263955,-876.32,0.00014764,2]
[353429735,1739824263965,-548.070799,0.00014764,2]
[353429736,1739824263975,-1119.09,0.00014764,2]
[353429737,1739824263985,-500.0,0.00014764,2]
[353429738,1739824263995,-975.56,0.00014764,2]
[353429739,1739824264005,-500.0,0.00014764,2]
[353429740,1739824264015,-1251.34,0.00014764,2]
[353429741,1739824264024,-513.1,0.00014764,2]
[353429742,1739824264034,-500.0,0.00014764,2]
[353429743,1739824264044,-755.73,0.00014764,2]
[353429744,1739824264055,-2432.3,0.00014764,2]
[353429745,1739824264065,-617.48,0.00014764,2]
[353429746,1739824264075,-980.53,0.00014764,2]
[353429747,1739824264085,-1151.84,0.00014764,2]
[353429748,1739824264095,-651.63,0.00014764,2]
[353429749,1739824264106,-1462.81,0.00014764,2]
[353429750,1739824264115,-500.0,0.00014764,2]
[353429751,1739824264125,-226.38028175,0.00014764,2]
[353429752,1739824264136,-842.52,0.00014764,2]
[353429753,1739824264147,-500.0,0.00014764,2]
[353429754,1739824264157,-934.89,0.00014764,2]
[353429755,1739824264167,-566.1,0.00014764,2]
[353429756,1739824264177,-500.0,0.00014764,2]
[353429757,1739824264187,-985.31,0.00014764,2]
[353429758,1739824264196,-628.67,0.00014764,2]
[353429759,1739824264206,-500.0,0.00014764,2]
[353429760,1739824264216,-500.0,0.00014764,2]
[353429761,1739824264226,-500.0,0.00014764,2]
[353429762,1739824264235,-500.0,0.00014764,2]
[353429763,1739824264245,-500.0,0.00014764,2]
[353429764,1739824264254,-500.0,0.00014764,2]
[353429765,1739824264264,-890.88,0.00014764,2]
[353429766,1739824264274,-500.0,0.00014764,2]
[353429767,1739824264284,-6801.15196269,0.00014765,6]
[353429768,1739824264294,-4582.62633338,0.00014765,6]
[353429769,1739824264304,-19576.58667083,0.00014766,6]
[353429770,1739824264315,-385.831293,0.00014766,2]
[353429771,1739824264325,-385.831293,0.00014766,2]
[353429772,1739824264335,-151.0,0.00014766,2]
[353429773,1739824264344,-151.0,0.00014766,2]
[353429774,1739824264353,-500.0,0.00014766,2]
[353429775,1739824264365,-860.15,0.00014766,2]
[353429776,1739824264375,-2183.23,0.00014766,2]
[353429777,1739824264386,-500.0,0.00014766,2]
[353429778,1739824264395,-500.0,0.00014766,2]
[353429779,1739824264407,-500.0,0.00014766,2]
[353429780,1739824264416,-500.0,0.00014766,2]
[353429781,1739824264426,-566.08,0.00014766,2]
[353429782,1739824264436,-661.86,0.00014766,2]
[353429783,1739824264448,-500.0,0.00014766,2]
[353429784,1739824264459,-500.0,0.00014766,2]
[353429785,1739824264468,-631.5,0.00014766,2]
[353429786,1739824264478,-500.0,0.00014766,2]
[353429787,1739824264488,-5800.0,0.00014767,2]
[353429788,1739824264497,-232.037,0.00014767,2]
[353429789,1739824264507,-4699.13689346,0.00014767,2]
[353429790,1739824264517,-151.0,0.00014767,2]
[353429791,1739824264527,-500.0,0.00014767,2]
[353429792,1739824264537,-500.0,0.00014767,2]
[353429793,1739824264547,-590.81,0.00014767,2]
[353429794,1739824264557,-577.67,0.00014767,2]
[353429795,1739824264567,-1001.9,0.00014767,2]
[353429796,1739824264576,-587.36,0.00014767,2]
[353429797,1739824264586,-1071.78,0.00014767,2]
[353429798,1739824264596,-977.2,0.00014767,2]
[353429799,1739824264606,-909.38,0.00014767,2]
[353429800,1739824264616,-773.35,0.00014767,2]
[353429801,1739824264625,-500.0,0.00014767,2]
[353429802,1739824264636,-599.87,0.00014767,2]
[353429803,1739824264645,-1025.81,0.00014767,2]
[353429804,1739824264655,-1111.81,0.00014767,2]
[353429805,1739824264665,-683.66,0.00014767,2]
[353429806,1739824264675,-500.0,0.00014767,2]
[353429807,1739824264685,-1058.99,0.00014767,2]
[353429808,1739824264695,-620.49653057,0.00014767,2]
[353429809,1739824264705,-500.0,0.00014767,2]
[353429810,1739824264715,-765.72,0.00014767,2]
[353429811,1739824264725,-1329.95,0.00014767,2]
[353429812,1739824264734,-500.0,0.00014767,2]
[353429813,1739824264744,-400.0,0.0001477,2]
[353429814,1739824264754,-400.0,0.0001477,2]
[353429815,1739824264763,-41711.53870944,0.00014773,6]
[353429816,1739824264773,-1290.92768893,0.00014774,6]
[353429817,1739824264782,-538.25303826,0.00014774,6]
[353429818,1739824264792,-220.43961578,0.00014778,6]
[353429819,1739824264801,-1000.0,0.00014779,2]
[353429820,1739824264812,-150.0,0.0001478,2]
[353429821,1739824264821,-200.0,0.0001478,6]
[353429822,1739824264831,-150.0,0.00014782,2]
[353429823,1739824264841,-220.43961578,0.00014783,6]
[353429824,1739824264850,-150.0,0.00014785,2]
[353429825,1739824264860,-1764.22,0.00014787,2]
[353429826,1739824264870,-150.0,0.00014788,2]
[353429827,1739824264880,-562.7047786,0.00014789,2]
[353429828,1739824264890,-2310.4656587,0.00014789,2]
[353429829,1739824264900,-562.7047786,0.0001479,2]
[353429830,1739824264910,-562.7047786,0.0001479,2]
[353429831,1739824264919,-562.7047786,0.0001479,2]
[353429832,1739824264929,-1916.4459071,0.0001479,2]
[353429833,1739824264939,-1522.4261555,0.0001479,2]
[353429834,1739824264949,-1128.4064038,0.0001479,2]
[353429835,1739824264958,-1290.92768893,0.00014791,6]
[353429836,1739824264968,-504.57,0.00014793,2]
[353429837,1739824264977,-150.0,0.00014794,2]
[353429838,1739824264988,-6801.15196269,0.00014795,6]
[353429839,1739824264997,-220.43961578,0.00014796,6]
[353429840,1739824265007,-68373.11649101,0.00014797,6]
[353429841,1739824265016,-1205.15026183,0.00014799,5]
[353429842,1739824265025,-150.0,0.00014799,2]
[353429843,1739824265035,-219.46893341,0.00014799,2]
[353429844,1739824265043,-563.04,0.00014799,2]
[353429845,1739824265053,-563.04,0.00014799,2]
[353429846,1739824265063,-500.0,0.00014799,2]
[353429847,1739824265073,-280.52566066,0.00014799,2]
[353429848,1739824265082,-500.0,0.00014799,2]
[353429849,1739824265091,-427.63498249,0.000148,2]
[353429850,1739824265101,-151.0,0.000148,2]
[353429851,1739824265111,-151.0,0.000148,2]
[353429852,1739824265121,-385.831293,0.000148,2]
[353429853,1739824265131,-385.831293,0.000148,2]
[353429854,1739824265141,-151.0,0.000148,2]
[353429855,1739824265151,-151.0,0.000148,2]
[353429856,1739824265160,-151.0,0.000148,2]
[353429857,1739824265171,-151.0,0.000148,2]
[353429858,1739824265181,-230.81261,0.000148,2]
[353429859,1739824265191,-230.81261,0.000148,2]
[353429860,1739824265202,-481168.401831,0.000148,3]
[353429861,1739824265212,-189.682133,0.000148,2]
[353429862,1739824265222,-287.34626,0.000148,2]
[353429863,1739824265232,-189.682133,0.000148,2]
[353429864,1739824265243,-151.0,0.000148,2]
[353429865,1739824265252,-223.701866,0.000148,2]
[353429866,1739824265262,-556.062407,0.000148,2]
[353429867,1739824265271,-223.701866,0.000148,2]
[353429868,1739824265281,-556.062407,0.000148,2]
[353429869,1739824265291,-45480.0,0.000148,2]
[353429870,1739824265301,-2000.0,0.000148,5]
[353429871,1739824265310,-500.0,0.00014813,2]
[353429872,1739824265319,-150.0,0.00014821,2]
[353429873,1739824265329,-1070.83,0.00014846,2]
[353429874,1739824265339,-695.82,0.00014846,2]
[353429875,1739824265349,-685.81,0.00014846,2]
[353429876,1739824265360,-500.0,0.00014846,2]
[353429877,1739824265373,-937.42,0.00014846,2]